[Event "42nd GRE-ch Women 2019"]
[Site "Thessaloniki"]
[Date "2019.11.22"]
[Round "3.2"]
[White "Vozinaki, Anthi - Maria"]
[Black "Stefanidi, Maria-Anna"]
[Result "0-1"]
[ECO "B08"]
[WhiteElo "1878"]
[BlackElo "2012"]
[Annotator "NA"]
[PlyCount "54"]
[EventDate "2019.11.20"]
[EventType "tourn"]
[EventCountry "GRE"]
[SourceTitle "playchess.com"]
[Source "ChessBase"]
[SourceQuality "1"]
[TimeControl "40/5400+30:1800+30"]

1. e4 {[%emt 0:00:00]} Nf6 {[%emt 0:01:03]} 2. Nc3 {[%emt 0:00:47]} d6 {[%emt 0:02:31]} 3. d4 {[%emt 0:00:36]} g6 {[%emt 0:02:23]} 4. Nf3 {[%emt 0:00:23]} Bg7 {[%emt 0:00:31]} 5. Be2 {[%emt 0:00:17]} O-O {[%emt 0:00:24]} 6. O-O {[%emt 0:00:10]} Bg4 {[%emt 0:00:56]} 7. h3 {[%emt 0:03:32]} Bxf3 {[%emt 0:00:58]} 8. Bxf3 {[%emt 0:00:16]} c6 {[%emt 0:00:33]} 9. a4 {[%emt 0:00:59]} Nbd7 {[%emt 0:00:12]} 10. Be3 {[%emt 0:03:45]} Qc7 {[%emt 0:07:18]} 11. Qd2 {[%emt 0:06:55]} Rfd8 {[%emt 0:03:59]} 12. Rad1 {[%emt 0:04:04]} a6 {[%emt 0:00:23]} 13. d5 {[%emt 0:08:17]} Rab8 {[%emt 0:08:55]} 14. Be2 {[%emt 0:06:33]} b5 {[%emt 0:15:53]} 15. dxc6 {[%emt 0:13:00]} Qxc6 {[%emt 0:02:12]} 16. axb5 {[%emt 0:02:42]} axb5 {[%emt 0:00:08]} 17. Nd5 {[%emt 0:08:15]} Re8 {[%emt 0:04:24]} 18. Nb4 $11 {[%emt 0:05:59]} Qb7 {[%emt 0:06:43]} 19. f3 {[%emt 0:01:48]} Nc5 {[%emt 0:03:01]} 20. Ra1 {[%emt 0:03:58]} Nh5 {[%emt 0:02:16]} 21. Ra5 {[%emt 0:06:18]} Ng3 {[%emt 0:02:26]} 22. Rfa1 {[%emt 0:04:52]} Bxb2 {[%emt 0:00:50]} 23. Bxb5 {[%emt 0:07:15]} Bxa1 {[%emt 0:00:16]} 24. Bxe8 {[%emt 0:00:13]} Bc3 {[%emt 0:01:18]} 25. Qf2 {[%emt 0:06:19]} Qxb4 {[%emt 0:00:21]} 26. Ra7 {[%emt 0:01:21]} Qb1+ {[%emt 0:00:15]} 27. Kh2 {[%emt 0:00:09]} Nf1+ {[%emt 0:00:07]} 0-1

[Event "42nd GRE-ch Women 2019"]
[Site "Thessaloniki"]
[Date "2019.11.22"]
[Round "3.3"]
[White "Pavlidou, Ekaterini"]
[Black "Makka, Ioulia"]
[Result "1-0"]
[ECO "E15"]
[WhiteElo "2183"]
[BlackElo "2048"]
[Annotator "NA"]
[PlyCount "73"]
[EventDate "2019.11.20"]
[EventType "tourn"]
[EventCountry "GRE"]
[SourceTitle "playchess.com"]
[Source "ChessBase"]
[SourceQuality "1"]
[TimeControl "40/5400+30:1800+30"]

1. d4 {[%emt 0:00:00]} Nf6 {[%emt 0:00:30]} 2. c4 {[%emt 0:00:00]} e6 {[%emt 0:00:00]} 3. Nf3 {[%emt 0:00:25]} b6 {[%emt 0:00:06]} 4. g3 {[%emt 0:00:19]} Ba6 {[%emt 0:00:30]} 5. b3 {[%emt 0:00:10]} b5 {[%emt 0:01:26]} 6. Bg2 {[%emt 0:08:22]} bxc4 {[%emt 0:04:06]} 7. Ne5 {[%emt 0:04:20]} Bb4+ {[%emt 0:05:37]} 8. Kf1 {[%emt 0:06:53]} c6 {[%emt 0:14:00]} 9. bxc4 {[%emt 0:01:18]} O-O {[%emt 0:02:04]} 10. Qc2 {[%emt 0:07:48]} d5 {[%emt 0:16:22]} 11. a3 {[%emt 0:14:56]} Bd6 {[%emt 0:07:58]} 12. Bg5 {[%emt 0:10:16]} h6 {[%emt 0:01:27]} 13. h4 {[%emt 0:00:34]} Re8 {[%emt 0:19:32]} 14. Bf4 {[%emt 0:08:54]} Nh5 {[%emt 0:05:33]} 15. Nd2 {[%emt 0:02:15]} Nxf4 16. gxf4 {[%emt 0:01:45]} Qf6 {[%emt 0:04:59]} 17. e3 {[%emt 0:02:06]} Qe7 {[%emt 0:04:25]} 18. Kg1 {[%emt 0:00:56]} Rc8 {[%emt 0:01:53]} 19. Rh3 {[%emt 0:05:21]} Qd8 {[%emt 0:05:51]} 20. h5 {[%emt 0:03:00]} Nd7 {[%emt 0:01:14]} 21. Qa4 {[%emt 0:01:49]} Bb7 {[%emt 0:00:20]} 22. c5 {[%emt 0:00:53]} Be7 {[%emt 0:01:01]} 23. Ndf3 {[%emt 0:01:08]} Nf8 {[%emt 0:00:44]} 24. Kh2 {[%emt 0:01:21]} f6 {[%emt 0:01:00]} 25. Nd3 {[%emt 0:00:10]} Qc7 {[%emt 0:00:46]} 26. Rg1 {[%emt 0:01:19]} Kf7 {[%emt 0:00:40]} 27. Rg3 {[%emt 0:01:11]} Nd7 {[%emt 0:00:38]} 28. Bh3 {[%emt 0:01:00]} Bf8 {[%emt 0:00:26]} 29. Nh4 {[%emt 0:00:51]} e5 {[%emt 0:00:36]} 30. fxe5 {[%emt 0:00:16]} Kg8 {[%emt 0:00:41]} 31. Be6+ {[%emt 0:02:24]} Kh7 {[%emt 0:00:19]} 32. Qc2 {[%emt 0:00:44]} g6 {[%emt 0:00:44]} 33. hxg6+ {[%emt 0:00:16]} Kh8 {[%emt 0:00:21]} 34. g7+ {[%emt 0:00:50]} Bxg7 {[%emt 0:00:35]} 35. Rxg7 {[%emt 0:00:59]} Qd8 {[%emt 0:00:08]} 36. Rxd7 {[%emt 0:00:19]} Qe8 {[%emt 0:00:28]} 37. Nf4 {[%emt 0:00:30]} 1-0

[Event "42nd GRE-ch Women 2019"]
[Site "Thessaloniki"]
[Date "2019.11.22"]
[Round "3.4"]
[White "Grapsa, Georgia"]
[Black "Serefidou, Despina"]
[Result "0-1"]
[ECO "A40"]
[WhiteElo "2026"]
[BlackElo "1899"]
[Annotator "NA"]
[PlyCount "52"]
[EventDate "2019.11.20"]
[EventType "tourn"]
[EventCountry "GRE"]
[SourceTitle "playchess.com"]
[Source "ChessBase"]
[SourceQuality "1"]
[TimeControl "40/5400+30:1800+30"]

1. d4 {[%emt 0:01:05]} Nf6 {[%emt 0:00:00]} 2. c4 {[%emt 0:00:23]} e6 {[%emt 0:00:14]} 3. g3 {[%emt 0:00:03]} Bb4+ {[%emt 0:00:00]} 4. Bd2 {[%emt 0:00:03]} Qe7 {[%emt 0:00:31]} 5. Bg2 {[%emt 0:00:07]} Nc6 {[%emt 0:03:05]} 6. e3 {[%emt 0:00:09]} Bxd2+ {[%emt 0:01:31]} 7. Nxd2 {[%emt 0:00:25]} d6 {[%emt 0:04:39]} 8. Ne2 {[%emt 0:00:26]} a5 {[%emt 0:01:43]} 9. O-O {[%emt 0:01:09]} O-O {[%emt 0:00:06]} 10. h3 {[%emt 0:02:30]} e5 {[%emt 0:02:12]} 11. Re1 {[%emt 0:08:44]} h6 {[%emt 0:24:14]} 12. g4 {[%emt 0:07:08]} Nh7 {[%emt 0:10:46]} 13. Nc3 {[%emt 0:26:32]} f5 {[%emt 0:12:58]} 14. Nd5 {[%emt 0:00:23]} Qd8 {[%emt 0:08:12]} 15. f4 {[%emt 0:09:28]} fxg4 {[%emt 0:09:28]} 16. hxg4 {[%emt 0:00:08]} Kh8 {[%emt 0:01:05]} 17. Ne4 {[%emt 0:04:05]} exd4 {[%emt 0:04:46]} 18. exd4 {[%emt 0:00:10]} Nb4 {[%emt 0:00:25]} 19. Rf1 {[%emt 0:06:05]} Nxd5 {[%emt 0:00:45]} 20. cxd5 {[%emt 0:00:04]} Qh4 {[%emt 0:01:22]} 21. f5 {[%emt 0:00:14]} h5 {[%emt 0:01:04]} 22. Bf3 {[%emt 0:09:00]} hxg4 {[%emt 0:00:22]} 23. Bxg4 {[%emt 0:00:04]} Nf6 {[%emt 0:02:37]} 24. Nxf6 {[%emt 0:00:48]} Qg3+ {[%emt 0:00:13]} 25. Kh1 {[%emt 0:00:05]} Rxf6 {[%emt 0:00:26]} 26. Re1 {[%emt 0:16:10]} Bxf5 {[%emt 0:04:41]} 0-1

[Event "42nd GRE-ch Women 2019"]
[Site "Thessaloniki"]
[Date "2019.11.22"]
[Round "3.5"]
[White "Koutsidi, Amalia"]
[Black "Markantonaki, Haritomeni"]
[Result "1-0"]
[ECO "B40"]
[WhiteElo "1724"]
[BlackElo "2178"]
[Annotator "NA"]
[PlyCount "75"]
[EventDate "2019.11.20"]
[EventType "tourn"]
[EventCountry "GRE"]
[SourceTitle "playchess.com"]
[Source "ChessBase"]
[SourceQuality "1"]
[TimeControl "40/5400+30:1800+30"]

1. e4 {[%emt 0:00:00]} c5 {[%emt 0:00:00]} 2. Nf3 {[%emt 0:00:00]} e6 {[%emt 0:00:00]} 3. c3 {[%emt 0:00:00]} d5 {[%emt 0:01:55]} 4. exd5 {[%emt 0:00:00]} Qxd5 {[%emt 0:00:05]} 5. d4 {[%emt 0:00:08]} Nf6 {[%emt 0:00:21]} 6. Bd3 {[%emt 0:00:18]} Nc6 {[%emt 0:01:13]} 7. Be3 {[%emt 0:00:38]} cxd4 {[%emt 0:01:01]} 8. cxd4 {[%emt 0:00:18]} Be7 {[%emt 0:00:42]} 9. Nc3 {[%emt 0:00:22]} Qd8 {[%emt 0:01:39]} 10. a3 {[%emt 0:00:35]} O-O {[%emt 0:00:29]} 11. O-O {[%emt 0:00:10]} b6 {[%emt 0:02:01]} 12. Qe2 {[%emt 0:00:37]} Bb7 {[%emt 0:01:20]} 13. Rad1 {[%emt 0:00:54]} Rc8 {[%emt 0:03:42]} 14. Rfe1 {[%emt 0:01:03]} Qc7 {[%emt 0:04:11]} 15. Bg5 {[%emt 0:08:15]} Rfd8 {[%emt 0:04:54]} 16. Bb1 {[%emt 0:16:50]} Na5 {[%emt 0:20:02]} 17. Ne5 {[%emt 0:05:31]} Nc4 {[%emt 0:02:52]} 18. Nb5 {[%emt 0:03:23]} Qb8 {[%emt 0:03:24]} 19. Nxc4 {[%emt 0:01:24]} Rd5 {[%emt 0:03:46]} 20. Ne5 {[%emt 0:02:13]} Ba6 {[%emt 0:00:35]} 21. a4 {[%emt 0:02:10]} Qb7 {[%emt 0:01:53]} 22. Bxf6 {[%emt 0:13:36]} gxf6 {[%emt 0:00:05]} 23. Qh5 {[%emt 0:01:25]} Bb4 {[%emt 0:01:52]} 24. Qxh7+ {[%emt 0:17:58]} Kf8 {[%emt 0:00:05]} 25. Qh6+ {[%emt 0:01:14]} Ke7 {[%emt 0:01:48]} 26. Ng4 {[%emt 0:03:25]} Bxe1 {[%emt 0:01:27]} 27. Qxf6+ {[%emt 0:00:29]} Kf8 {[%emt 0:00:45]} 28. Rxe1 {[%emt 0:00:56]} Bxb5 {[%emt 0:02:33]} 29. axb5 {[%emt 0:00:07]} Rxb5 {[%emt 0:00:17]} 30. h4 {[%emt 0:01:48]} Rxb2 {[%emt 0:16:40]} 31. h5 {[%emt 0:03:36]} Ke8 {[%emt 0:03:31]} 32. Ne5 {[%emt 0:04:36]} Qe7 {[%emt 0:01:28]} 33. Qf4 {[%emt 0:01:36]} Rc7 {[%emt 0:04:26]} 34. h6 {[%emt 0:02:01]} f6 {[%emt 0:01:50]} 35. Ng6 {[%emt 0:01:12]} Qf7 {[%emt 0:00:44]} 36. Bf5 {[%emt 0:01:42]} Rc6 {[%emt 0:01:30]} 37. d5 {[%emt 0:01:11]} Qc7 {[%emt 0:00:52]} 38. dxc6 {[%emt 0:00:24]} 1-0

[Event "42nd GRE-ch Women 2019"]
[Site "Thessaloniki"]
[Date "2019.11.23"]
[Round "4.1"]
[White "Hristodoulaki, Antonia"]
[Black "Markantonaki, Haritomeni"]
[Result "0-1"]
[ECO "B22"]
[WhiteElo "2054"]
[BlackElo "2178"]
[Annotator "NA"]
[PlyCount "94"]
[EventDate "2019.11.20"]
[EventType "tourn"]
[EventCountry "GRE"]
[SourceTitle "playchess.com"]
[Source "ChessBase"]
[SourceQuality "1"]
[TimeControl "40/5400+30:1800+30"]

1. e4 {[%emt 0:00:00]} c5 {[%emt 0:00:00]} 2. c3 {[%emt 0:00:00]} Nf6 {[%emt 0:00:02]} 3. e5 {[%emt 0:00:00]} Nd5 {[%emt 0:00:05]} 4. d4 {[%emt 0:00:00]} cxd4 {[%emt 0:00:18]} 5. Nf3 {[%emt 0:00:08]} e6 {[%emt 0:00:12]} 6. cxd4 {[%emt 0:00:18]} d6 {[%emt 0:00:31]} 7. a3 {[%emt 0:00:12]} Be7 {[%emt 0:01:21]} 8. Bd3 {[%emt 0:20:00]} b6 {[%emt 0:05:55]} 9. O-O {[%emt 0:02:43]} Bb7 {[%emt 0:00:35]} 10. Re1 {[%emt 0:03:15]} O-O {[%emt 0:04:57]} 11. exd6 {[%emt 0:14:19]} Qxd6 {[%emt 0:03:38]} 12. Nc3 {[%emt 0:04:27]} Nxc3 {[%emt 0:11:28]} 13. bxc3 {[%emt 0:00:07]} Nd7 {[%emt 0:00:33]} 14. Bd2 {[%emt 0:12:18]} Rac8 {[%emt 0:03:33]} 15. Ne5 {[%emt 0:03:03]} Nxe5 {[%emt 0:04:16]} 16. Rxe5 {[%emt 0:00:23]} g6 {[%emt 0:04:32]} 17. Qg4 {[%emt 0:06:07]} Bf6 {[%emt 0:01:49]} 18. Re3 {[%emt 0:06:57]} Bg7 {[%emt 0:05:44]} 19. f4 {[%emt 0:00:57]} Bd5 {[%emt 0:07:28]} 20. Qh4 {[%emt 0:03:54]} Qd8 {[%emt 0:07:44]} 21. Qf2 {[%emt 0:01:02]} Bc4 {[%emt 0:01:23]} 22. Be4 {[%emt 0:00:21]} b5 {[%emt 0:02:34]} 23. Rh3 {[%emt 0:01:50]} a5 {[%emt 0:01:18]} 24. Be3 {[%emt 0:00:45]} Rb8 {[%emt 0:06:48]} 25. Rb1 {[%emt 0:01:11]} Qe7 {[%emt 0:01:11]} 26. Bc1 {[%emt 0:00:40]} Rfd8 {[%emt 0:01:43]} 27. g4 {[%emt 0:02:09]} f5 {[%emt 0:04:12]} 28. gxf5 {[%emt 0:01:42]} exf5 {[%emt 0:00:20]} 29. Bd3 {[%emt 0:01:48]} Bxd3 {[%emt 0:02:19]} 30. Rxd3 {[%emt 0:00:02]} Qd6 {[%emt 0:00:11]} 31. Bb2 {[%emt 0:00:51]} Qd5 {[%emt 0:03:16]} 32. Rc1 {[%emt 0:01:54]} Re8 {[%emt 0:01:30]} 33. Re3 {[%emt 0:01:35]} Re4 {[%emt 0:04:30]} 34. Rce1 {[%emt 0:02:26]} Rbe8 {[%emt 0:00:42]} 35. Bc1 {[%emt 0:01:42]} b4 {[%emt 0:01:17]} 36. Rxe4 {[%emt 0:00:25]} Rxe4 {[%emt 0:01:49]} 37. axb4 {[%emt 0:02:25]} axb4 {[%emt 0:00:15]} 38. Rxe4 {[%emt 0:00:43]} Qxe4 {[%emt 0:01:18]} 39. Qe3 {[%emt 0:06:16]} bxc3 {[%emt 0:02:32]} 40. Qxe4 {[%emt 0:00:00]} fxe4 {[%emt 0:00:00]} 41. Be3 {[%emt 0:02:15]} c2 {[%emt 0:02:12]} 42. Kf1 {[%emt 0:00:02]} Bxd4 {[%emt 0:00:14]} 43. Bc1 {[%emt 0:00:06]} Kf7 {[%emt 0:01:04]} 44. Ke2 {[%emt 0:00:09]} Kf6 {[%emt 0:00:52]} 45. Kd2 {[%emt 0:01:02]} Kf5 {[%emt 0:00:18]} 46. Kxc2 {[%emt 0:00:07]} Bg1 {[%emt 0:00:38]} 47. h3 {[%emt 0:00:21]} Bh2 {[%emt 0:00:00]} 0-1

[Event "42nd GRE-ch Women 2019"]
[Site "Thessaloniki"]
[Date "2019.11.23"]
[Round "4.2"]
[White "Serefidou, Despina"]
[Black "Koutsidi, Amalia"]
[Result "1/2-1/2"]
[ECO "B92"]
[WhiteElo "1899"]
[BlackElo "1724"]
[Annotator "NA"]
[PlyCount "150"]
[EventDate "2019.11.20"]
[EventType "tourn"]
[EventCountry "GRE"]
[SourceTitle "playchess.com"]
[Source "ChessBase"]
[SourceQuality "1"]
[TimeControl "40/5400+30:1800+30"]

1. e4 {[%emt 0:00:00]} c5 {[%emt 0:00:00]} 2. Nf3 {[%emt 0:00:00]} d6 {[%emt 0:00:00]} 3. d4 {[%emt 0:00:00]} cxd4 {[%emt 0:00:00]} 4. Nxd4 {[%emt 0:00:00]} Nf6 {[%emt 0:00:00]} 5. Nc3 {[%emt 0:00:00]} a6 {[%emt 0:00:00]} 6. Be2 {[%emt 0:00:09]} e5 {[%emt 0:00:07]} 7. Nb3 {[%emt 0:00:08]} Be7 {[%emt 0:00:13]} 8. Be3 {[%emt 0:00:33]} Qc7 {[%emt 0:01:34]} 9. Nd5 {[%emt 0:08:40]} Nxd5 {[%emt 0:01:31]} 10. Qxd5 {[%emt 0:01:26]} Be6 {[%emt 0:01:45]} 11. Qd2 {[%emt 0:16:50]} Nd7 {[%emt 0:05:49]} 12. f4 {[%emt 0:19:26]} Nf6 {[%emt 0:06:43]} 13. Bf3 {[%emt 0:02:28]} Rc8 {[%emt 0:06:02]} 14. Rc1 {[%emt 0:09:13]} O-O {[%emt 0:14:12]} 15. f5 {[%emt 0:06:59]} Bd7 {[%emt 0:01:01]} 16. g4 {[%emt 0:00:45]} Bc6 {[%emt 0:01:44]} 17. Qg2 {[%emt 0:01:12]} Rfd8 {[%emt 0:07:46]} 18. g5 {[%emt 0:01:42]} Nd7 {[%emt 0:03:00]} 19. f6 {[%emt 0:02:55]} Bf8 {[%emt 0:00:11]} 20. fxg7 {[%emt 0:03:31]} Bxg7 {[%emt 0:00:43]} 21. O-O {[%emt 0:14:50]} Nf8 {[%emt 0:06:25]} 22. Qf2 {[%emt 0:03:04]} Bd7 {[%emt 0:15:01]} 23. Bb6 {[%emt 0:01:17]} Qc4 {[%emt 0:01:10]} 24. Bxd8 {[%emt 0:00:07]} Rxd8 {[%emt 0:00:03]} 25. Qe2 {[%emt 0:04:27]} Qe6 {[%emt 0:02:12]} 26. Bh5 {[%emt 0:02:31]} Ng6 {[%emt 0:00:53]} 27. Bxg6 {[%emt 0:00:11]} fxg6 {[%emt 0:00:46]} 28. c4 {[%emt 0:00:55]} b5 {[%emt 0:06:36]} 29. c5 {[%emt 0:00:26]} d5 {[%emt 0:01:11]} 30. exd5 {[%emt 0:00:09]} Qxd5 {[%emt 0:00:00]} 31. Rfd1 {[%emt 0:00:44]} Qc6 {[%emt 0:03:46]} 32. Na5 {[%emt 0:00:38]} Qc7 {[%emt 0:00:07]} 33. c6 {[%emt 0:00:29]} Bc8 {[%emt 0:05:26]} 34. Rxd8+ {[%emt 0:00:40]} Qxd8 {[%emt 0:00:06]} 35. Nb3 {[%emt 0:00:27]} Qxg5+ {[%emt 0:01:46]} 36. Qg2 {[%emt 0:00:13]} Qe3+ {[%emt 0:00:27]} 37. Qf2 {[%emt 0:00:33]} Qg5+ {[%emt 0:00:26]} 38. Qg3 {[%emt 0:00:32]} Qf5 {[%emt 0:02:23]} 39. Rf1 {[%emt 0:00:44]} Qe6 {[%emt 0:01:13]} 40. Rc1 {[%emt 0:00:00]} Bh6 {[%emt 0:00:00]} 41. Rc2 {[%emt 0:11:30]} Qd5 {[%emt 0:06:38]} 42. Qe1 {[%emt 0:03:08]} Be3+ {[%emt 0:03:39]} 43. Qxe3 {[%emt 0:03:00]} Qd1+ {[%emt 0:01:12]} 44. Kf2 {[%emt 0:01:56]} Qxc2+ {[%emt 0:00:36]} 45. Kg3 {[%emt 0:03:35]} Qxc6 {[%emt 0:00:34]} 46. Qxe5 {[%emt 0:00:10]} Qe6 {[%emt 0:05:59]} 47. Qxe6+ {[%emt 0:09:04]} Bxe6 {[%emt 0:00:06]} 48. Nc5 {[%emt 0:00:09]} Bxa2 {[%emt 0:07:15]} 49. Nxa6 {[%emt 0:00:05]} Kf7 {[%emt 0:00:26]} 50. Nc7 {[%emt 0:02:18]} Bc4 {[%emt 0:03:18]} 51. b3 {[%emt 0:00:13]} Bd3 {[%emt 0:00:36]} 52. Kf4 {[%emt 0:00:20]} Ke7 {[%emt 0:01:39]} 53. Ke5 {[%emt 0:01:11]} g5 {[%emt 0:03:11]} 54. Ne6 {[%emt 0:00:46]} g4 {[%emt 0:00:57]} 55. Nd4 {[%emt 0:00:28]} h5 {[%emt 0:00:28]} 56. b4 {[%emt 0:00:19]} Kf7 {[%emt 0:01:17]} 57. Ne6 {[%emt 0:00:29]} h4 {[%emt 0:01:59]} 58. Ng5+ {[%emt 0:00:45]} Kg6 {[%emt 0:00:36]} 59. Kf4 {[%emt 0:00:37]} g3 {[%emt 0:03:45]} 60. hxg3 {[%emt 0:00:14]} hxg3 {[%emt 0:00:06]} 61. Nf3 {[%emt 0:00:34]} Be2 {[%emt 0:02:05]} 62. Kxg3 {[%emt 0:00:31]} Bxf3 {[%emt 0:00:04]} 63. Kxf3 {[%emt 0:00:03]} Kf5 {[%emt 0:00:06]} 64. Ke3 {[%emt 0:00:07]} Ke5 {[%emt 0:00:04]} 65. Kd3 {[%emt 0:01:00]} Kd5 {[%emt 0:00:05]} 66. Kc3 {[%emt 0:00:42]} Ke4 {[%emt 0:00:07]} 67. Kc2 {[%emt 0:00:42]} Kd4 {[%emt 0:00:07]} 68. Kb2 {[%emt 0:00:36]} Kc4 {[%emt 0:00:10]} 69. Kc2 {[%emt 0:00:18]} Kxb4 {[%emt 0:00:07]} 70. Kb2 {[%emt 0:00:07]} Ka4 {[%emt 0:02:20]} 71. Ka2 {[%emt 0:00:05]} b4 {[%emt 0:00:05]} 72. Kb2 {[%emt 0:00:12]} b3 {[%emt 0:00:40]} 73. Kb1 {[%emt 0:00:17]} Ka3 {[%emt 0:00:34]} 74. Ka1 {[%emt 0:00:05]} b2+ {[%emt 0:00:07]} 75. Kb1 {[%emt 0:00:03]} Kb3 {[%emt 0:00:03]} 1/2-1/2

[Event "42nd GRE-ch Women 2019"]
[Site "Thessaloniki"]
[Date "2019.11.23"]
[Round "4.3"]
[White "Makka, Ioulia"]
[Black "Grapsa, Georgia"]
[Result "0-1"]
[ECO "A01"]
[WhiteElo "2048"]
[BlackElo "2026"]
[Annotator "NA"]
[PlyCount "108"]
[EventDate "2019.11.20"]
[EventType "tourn"]
[EventCountry "GRE"]
[SourceTitle "playchess.com"]
[Source "ChessBase"]
[SourceQuality "1"]
[TimeControl "40/5400+30:1800+30"]

1. b3 {[%emt 0:00:00]} Nf6 {[%emt 0:00:00]} 2. Bb2 {[%emt 0:00:07]} g6 {[%emt 0:00:00]} 3. c4 {[%emt 0:04:15]} Bg7 {[%emt 0:00:06]} 4. g3 {[%emt 0:04:05]} O-O {[%emt 0:00:12]} 5. Bg2 {[%emt 0:00:40]} d5 {[%emt 0:03:58]} 6. cxd5 {[%emt 0:04:13]} Nxd5 {[%emt 0:00:06]} 7. Bxg7 {[%emt 0:00:30]} Kxg7 {[%emt 0:00:04]} 8. d4 {[%emt 0:09:09]} c6 {[%emt 0:01:22]} 9. Qd2 {[%emt 0:04:11]} Nd7 {[%emt 0:14:07]} 10. e4 {[%emt 0:03:18]} N5f6 {[%emt 0:01:04]} 11. f4 {[%emt 0:02:19]} Nb6 {[%emt 0:04:01]} 12. Qc3 {[%emt 0:08:15]} Be6 {[%emt 0:07:13]} 13. h3 {[%emt 0:04:23]} a5 {[%emt 0:02:35]} 14. g4 {[%emt 0:18:41]} Kg8 {[%emt 0:00:52]} 15. Ne2 {[%emt 0:12:01]} a4 {[%emt 0:00:38]} 16. f5 {[%emt 0:01:35]} Bd7 {[%emt 0:00:26]} 17. b4 {[%emt 0:01:26]} e6 {[%emt 0:04:28]} 18. fxg6 {[%emt 0:01:53]} hxg6 {[%emt 0:02:26]} 19. O-O {[%emt 0:00:34]} e5 {[%emt 0:07:40]} 20. dxe5 {[%emt 0:00:56]} Nh7 {[%emt 0:00:07]} 21. Rd1 {[%emt 0:08:30]} Re8 {[%emt 0:09:30]} 22. Nd2 {[%emt 0:01:08]} Be6 {[%emt 0:08:45]} 23. Nf3 {[%emt 0:02:52]} Qe7 {[%emt 0:03:02]} 24. Nf4 {[%emt 0:03:41]} Rad8 {[%emt 0:09:44]} 25. Rd4 {[%emt 0:01:11]} Ng5 {[%emt 0:02:10]} 26. Ne2 {[%emt 0:02:14]} Nxf3+ {[%emt 0:01:35]} 27. Bxf3 {[%emt 0:00:35]} Qg5 {[%emt 0:05:13]} 28. a3 {[%emt 0:00:33]} Nd7 29. Rad1 {[%emt 0:00:32]} Nxe5 {[%emt 0:05:41]} 30. Rxd8 {[%emt 0:00:36]} Nxf3+ {[%emt 0:00:07]} 31. Qxf3 {[%emt 0:00:08]} Rxd8 {[%emt 0:00:03]} 32. Rxd8+ {[%emt 0:00:25]} Qxd8 {[%emt 0:00:06]} 33. Kf2 {[%emt 0:00:42]} Qd1 {[%emt 0:01:35]} 34. Qc3 {[%emt 0:00:43]} Qh1 {[%emt 0:01:51]} 35. e5 {[%emt 0:00:28]} Bd5 {[%emt 0:00:47]} 36. Qg3 {[%emt 0:00:17]} Qa1 {[%emt 0:00:57]} 37. Qe3 {[%emt 0:00:42]} b5 {[%emt 0:00:48]} 38. h4 {[%emt 0:00:36]} Qh1 {[%emt 0:01:16]} 39. Qg3 {[%emt 0:00:30]} Qe4 {[%emt 0:00:19]} 40. h5 {[%emt 0:00:00]} g5 {[%emt 0:02:23]} 41. Nc3 {[%emt 0:10:49]} Qd4+ {[%emt 0:04:52]} 42. Ke1 {[%emt 0:04:03]} Be6 43. Ne2 {[%emt 0:03:20]} Qe4 {[%emt 0:01:11]} 44. Kd2 {[%emt 0:02:53]} Bxg4 {[%emt 0:07:04]} 45. Nc3 {[%emt 0:00:43]} Qd4+ {[%emt 0:00:30]} 46. Kc1 {[%emt 0:01:27]} Kh7 {[%emt 0:01:18]} 47. Qe1 {[%emt 0:03:42]} Kh6 {[%emt 0:03:13]} 48. Kb2 {[%emt 0:00:50]} Bf5 {[%emt 0:02:12]} 49. Qe2 {[%emt 0:01:28]} g4 {[%emt 0:00:54]} 50. Qh2 {[%emt 0:03:25]} Qe3 {[%emt 0:02:32]} 51. Qg2 {[%emt 0:02:46]} Kxh5 {[%emt 0:02:40]} 52. Qh1+ {[%emt 0:00:59]} Kg5 {[%emt 0:00:48]} 53. Qh2 {[%emt 0:00:30]} g3 {[%emt 0:00:56]} 54. Qg2 {[%emt 0:00:28]} Qf2+ {[%emt 0:00:17]} 0-1

[Event "42nd GRE-ch Women 2019"]
[Site "Thessaloniki"]
[Date "2019.11.23"]
[Round "4.4"]
[White "Stefanidi, Maria-Anna"]
[Black "Pavlidou, Ekaterini"]
[Result "0-1"]
[ECO "B32"]
[WhiteElo "2012"]
[BlackElo "2183"]
[Annotator "NA"]
[PlyCount "78"]
[EventDate "2019.11.20"]
[EventType "tourn"]
[EventCountry "GRE"]
[SourceTitle "playchess.com"]
[Source "ChessBase"]
[SourceQuality "1"]
[TimeControl "40/5400+30:1800+30"]

1. e4 {[%emt 0:00:00]} c5 {[%emt 0:00:00]} 2. Nf3 {[%emt 0:00:00]} Nc6 {[%emt 0:00:18]} 3. d4 {[%emt 0:00:00]} cxd4 {[%emt 0:00:11]} 4. Nxd4 {[%emt 0:00:00]} e5 {[%emt 0:00:42]} 5. Nb5 {[%emt 0:01:52]} d6 {[%emt 0:00:16]} 6. c4 {[%emt 0:00:28]} g6 {[%emt 0:01:51]} 7. N1c3 {[%emt 0:00:48]} a6 {[%emt 0:00:53]} 8. Na3 {[%emt 0:00:05]} Bg7 {[%emt 0:04:42]} 9. g3 {[%emt 0:03:32]} Nge7 {[%emt 0:00:50]} 10. Bg2 {[%emt 0:01:06]} O-O {[%emt 0:00:29]} 11. Be3 {[%emt 0:05:18]} f5 {[%emt 0:06:46]} 12. Qd2 {[%emt 0:03:02]} Nd4 {[%emt 0:19:19]} 13. h4 {[%emt 0:21:28]} Nec6 {[%emt 0:20:20]} 14. O-O-O {[%emt 0:12:56]} f4 {[%emt 0:11:10]} 15. gxf4 {[%emt 0:06:27]} exf4 {[%emt 0:00:25]} 16. Bxf4 {[%emt 0:01:20]} b5 {[%emt 0:04:05]} 17. Bg5 {[%emt 0:01:41]} Qb6 {[%emt 0:04:48]} 18. Nd5 {[%emt 0:17:20]} Qb7 {[%emt 0:03:19]} 19. e5 {[%emt 0:02:49]} Rf7 {[%emt 0:10:44]} 20. Nf6+ {[%emt 0:06:08]} Bxf6 {[%emt 0:01:01]} 21. Bxf6 {[%emt 0:00:12]} b4 {[%emt 0:01:29]} 22. Nb1 {[%emt 0:04:10]} Qb6 {[%emt 0:02:25]} 23. Bxc6 {[%emt 0:06:30]} Nxc6 {[%emt 0:00:02]} 24. Qd3 d5 25. Qxd5 {[%emt 0:00:39]} Bg4 {[%emt 0:00:39]} 26. Qd6 {[%emt 0:00:55]} Rd7 {[%emt 0:00:30]} 27. Qxd7 {[%emt 0:00:57]} Bxd7 {[%emt 0:00:01]} 28. Rxd7 {[%emt 0:00:07]} Ra7 {[%emt 0:01:45]} 29. Rhd1 {[%emt 0:00:43]} Qxf2 {[%emt 0:00:30]} 30. R7d6 {[%emt 0:01:48]} Qf4+ {[%emt 0:00:34]} 31. Nd2 {[%emt 0:00:26]} Rc7 {[%emt 0:04:26]} 32. Rf1 {[%emt 0:01:15]} Qe3 {[%emt 0:00:20]} 33. e6 {[%emt 0:00:53]} h5 {[%emt 0:00:38]} 34. Bg5 {[%emt 0:00:48]} Qe2 {[%emt 0:00:58]} 35. Bh6 {[%emt 0:00:50]} b3 {[%emt 0:00:13]} 36. axb3 {[%emt 0:00:45]} Nb4 {[%emt 0:00:45]} 37. Rf8+ {[%emt 0:00:39]} Kh7 {[%emt 0:00:01]} 38. Rf7+ {[%emt 0:00:05]} Rxf7 {[%emt 0:00:04]} 39. exf7 {[%emt 0:00:10]} Qe1# {[%emt 0:00:06]} 0-1